[Event "FIDE WYCC Open U14 2023"]
[Site "Montesilvano"]
[Date "2023.11.17"]
[Round "5.23"]
[White "Lissillour, Baptiste"]
[Black "Demirtas, Alper"]
[Result "1-0"]
[ECO "C18"]
[WhiteElo "2298"]
[BlackElo "2034"]
[Annotator "RC"]
[PlyCount "115"]
[EventDate "2023.11.13"]
[EventType "swiss"]
[EventCountry "ITA"]
[SourceTitle "playchess.com"]
[Source "ChessBase"]
[SourceQuality "1"]
[TimeControl "40/5400+30:1800+30"]

1. e4 {[%emt 0:00:02]} e6 {[%emt 0:00:01]} 2. d4 {[%emt 0:00:05]} d5 {[%emt 0:00:01]} 3. Nc3 {[%emt 0:00:06]} Bb4 {[%emt 0:00:02]} 4. e5 {[%emt 0:00:06]} c5 {[%emt 0:00:00]} 5. a3 {[%emt 0:00:06]} Bxc3+ {[%emt 0:00:02]} 6. bxc3 {[%emt 0:00:02]} Ne7 {[%emt 0:00:08]} 7. h4 {[%emt 0:00:05]} Qc7 {[%emt 0:05:14]} 8. Rh3 {[%emt 0:00:04]} Nbc6 {[%emt 0:13:28]} 9. h5 {[%emt 0:01:25]} h6 {[%emt 0:01:00]} 10. Nf3 {[%emt 0:00:13]} Bd7 {[%emt 0:04:45]} 11. Be2 {[%emt 0:00:05]} O-O-O {[%emt 0:04:20]} 12. Kf1 {[%emt 0:00:03]} c4 {[%emt 0:08:05]} 13. a4 {[%emt 0:00:23]} Kb8 {[%emt 0:03:56]} 14. Ba3 {[%emt 0:00:06]} Ka8 {[%emt 0:04:14]} 15. a5 {[%emt 0:00:05]} Rdg8 {[%emt 0:06:57]} 16. Qc1 {[%emt 0:09:23]} Nc8 {[%emt 0:03:43]} 17. a6 {[%emt 0:05:01]} b6 {[%emt 0:00:10]} 18. Qf4 {[%emt 0:01:29]} Be8 {[%emt 0:04:47]} 19. Qh4 {[%emt 0:19:09]} Qd8 {[%emt 0:01:13]} 20. Qxd8 {[%emt 0:03:45]} Nxd8 {[%emt 0:00:06]} 21. Nh2 {[%emt 0:00:04]} Bb5 {[%emt 0:01:51]} 22. Bc1 {[%emt 0:01:50]} Ne7 {[%emt 0:00:57]} 23. g4 {[%emt 0:09:53]} Nec6 {[%emt 0:02:14]} 24. f4 {[%emt 0:08:47]} Nb8 {[%emt 0:05:35]} 25. f5 {[%emt 0:13:07]} Nxa6 {[%emt 0:02:43]} 26. Rf3 {[%emt 0:03:41]} Nc7 {[%emt 0:01:45]} 27. f6 {[%emt 0:03:18]} g5 {[%emt 0:00:49]} 28. hxg6 {[%emt 0:00:07]} fxg6 {[%emt 0:00:18]} 29. Rh3 {[%emt 0:02:09]} Nf7 {[%emt 0:00:24]} 30. Kf2 {[%emt 0:03:07]} Bd7 {[%emt 0:01:29]} 31. g5 {[%emt 0:09:19]} hxg5 {[%emt 0:13:48]} 32. Kg3 {[%emt 0:01:53]} Nb5 {[%emt 0:00:44]} 33. Bd2 {[%emt 0:01:09]} a5 {[%emt 0:02:02]} 34. Bg4 {[%emt 0:03:02]} Kb7 {[%emt 0:01:22]} 35. Nf3 {[%emt 0:00:37]} Rxh3+ {[%emt 0:01:43]} 36. Bxh3 {[%emt 0:00:21]} Nc7 {[%emt 0:05:41]} 37. Bg4 {[%emt 0:03:10]} Rh8 {[%emt 0:00:23]} 38. Bxg5 {[%emt 0:01:31]} a4 {[%emt 0:00:45]} 39. Bc1 {[%emt 0:00:28]} Nb5 {[%emt 0:01:33]} 40. Rxa4 {[%emt 0:00:00]} Nxc3 {[%emt 0:00:00]} 41. Ra1 {[%emt 0:04:16]} b5 {[%emt 0:14:37]} 42. Ng5 {[%emt 0:03:34]} Nxg5 {[%emt 0:01:42]} 43. Bxg5 {[%emt 0:00:22]} b4 {[%emt 0:00:16]} 44. Kg2 {[%emt 0:04:06]} b3 {[%emt 0:04:12]} 45. cxb3 {[%emt 0:00:38]} cxb3 {[%emt 0:00:01]} 46. Ra3 {[%emt 0:01:24]} Ba4 {[%emt 0:02:24]} 47. Bc1 {[%emt 0:00:14]} Na2 {[%emt 0:08:07]} 48. Bb2 {[%emt 0:04:29]} Rc8 {[%emt 0:01:08]} 49. Bd1 {[%emt 0:00:22]} Be8 {[%emt 0:01:18]} 50. Rxb3+ {[%emt 0:04:17]} Kc6 {[%emt 0:00:41]} 51. Be2 {[%emt 0:00:29]} Bf7 {[%emt 0:00:58]} 52. Ba3 {[%emt 0:05:45]} Kd7 {[%emt 0:01:34]} 53. Bb5+ {[%emt 0:02:46]} Kd8 {[%emt 0:00:38]} 54. Bc5 {[%emt 0:01:55]} Ra8 {[%emt 0:00:49]} 55. Rh3 {[%emt 0:00:39]} Nc3 {[%emt 0:00:39]} 56. Bb6+ {[%emt 0:00:40]} Kc8 {[%emt 0:00:05]} 57. Rxc3+ {[%emt 0:00:04]} Kb7 {[%emt 0:00:04]} 58. Bc6+ {[%emt 0:00:05]} 1-0

[Event "FIDE WYCC Open U14 2023"]
[Site "Montesilvano"]
[Date "2023.11.17"]
[Round "5.24"]
[White "Vommaro, Stanislao"]
[Black "Zienkiewicz, Jan"]
[Result "1-0"]
[ECO "B88"]
[WhiteElo "2083"]
[BlackElo "2296"]
[Annotator "RC"]
[PlyCount "87"]
[EventDate "2023.11.13"]
[EventType "swiss"]
[EventCountry "ITA"]
[SourceTitle "playchess.com"]
[Source "ChessBase"]
[SourceQuality "1"]
[TimeControl "40/5400+30:1800+30"]

1. e4 {[%emt 0:02:08]} c5 {[%emt 0:00:04]} 2. Nf3 {[%emt 0:00:25]} Nc6 {[%emt 0:00:08]} 3. d4 {[%emt 0:00:51]} cxd4 {[%emt 0:00:10]} 4. Nxd4 {[%emt 0:00:27]} Nf6 {[%emt 0:00:18]} 5. Nc3 {[%emt 0:00:42]} d6 {[%emt 0:00:08]} 6. Bc4 {[%emt 0:01:45]} e6 {[%emt 0:00:22]} 7. Bb3 {[%emt 0:08:08]} Bd7 {[%emt 0:00:50]} 8. Be3 {[%emt 0:07:33]} a6 {[%emt 0:01:18]} 9. f3 {[%emt 0:08:17]} b5 {[%emt 0:02:38]} 10. a3 {[%emt 0:00:40]} Be7 {[%emt 0:01:47]} 11. g4 {[%emt 0:05:11]} O-O {[%emt 0:04:41]} 12. g5 {[%emt 0:14:33]} Ne8 {[%emt 0:13:15]} 13. h4 {[%emt 0:04:47]} Na5 {[%emt 0:01:37]} 14. Qd2 {[%emt 0:05:23]} Nxb3 {[%emt 0:07:02]} 15. cxb3 {[%emt 0:03:50]} Rc8 {[%emt 0:11:25]} 16. b4 {[%emt 0:08:22]} Bc6 {[%emt 0:21:43]} 17. O-O-O {[%emt 0:04:02]} a5 {[%emt 0:01:18]} 18. bxa5 {[%emt 0:00:35]} Qxa5 {[%emt 0:00:57]} 19. Kb1 {[%emt 0:01:39]} Qa6 {[%emt 0:08:11]} 20. h5 {[%emt 0:06:47]} Bd7 {[%emt 0:01:26]} 21. f4 {[%emt 0:01:13]} d5 {[%emt 0:05:38]} 22. Nc2 {[%emt 0:03:48]} Nd6 {[%emt 0:02:36]} 23. Nb4 {[%emt 0:01:29]} Qa5 {[%emt 0:00:29]} 24. Ncxd5 {[%emt 0:01:31]} exd5 {[%emt 0:01:46]} 25. Nxd5 {[%emt 0:00:10]} Qd8 {[%emt 0:00:33]} 26. Nxe7+ {[%emt 0:02:33]} Qxe7 {[%emt 0:00:01]} 27. Qxd6 {[%emt 0:00:21]} Qxe4+ {[%emt 0:00:05]} 28. Ka1 {[%emt 0:00:29]} Bg4 {[%emt 0:08:46]} 29. Qd4 {[%emt 0:01:39]} Rfe8 {[%emt 0:02:48]} 30. Rde1 {[%emt 0:04:00]} Rc4 {[%emt 0:01:55]} 31. Qd6 {[%emt 0:01:55]} Rc6 {[%emt 0:00:54]} 32. Qd4 {[%emt 0:00:17]} Rc4 {[%emt 0:00:18]} 33. Qd6 {[%emt 0:00:09]} Be6 {[%emt 0:01:12]} 34. Bd2 {[%emt 0:01:04]} Qf3 {[%emt 0:00:27]} 35. h6 {[%emt 0:00:43]} Ra8 {[%emt 0:00:34]} 36. Rhf1 {[%emt 0:00:32]} Qb3 {[%emt 0:00:18]} 37. Rxe6 {[%emt 0:00:21]} fxe6 {[%emt 0:00:28]} 38. Qxe6+ {[%emt 0:00:02]} Kf8 {[%emt 0:00:22]} 39. Qf5+ {[%emt 0:00:57]} Ke7 {[%emt 0:00:58]} 40. Re1+ {[%emt 0:00:00]} Kd6 {[%emt 0:00:00]} 41. Re6+ {[%emt 0:01:29]} Kc7 {[%emt 0:04:24]} 42. Qf7+ {[%emt 0:00:49]} Kb8 {[%emt 0:00:01]} 43. Re8+ {[%emt 0:00:20]} Rc8 {[%emt 0:00:03]} 44. Rxc8+ {[%emt 0:00:16]} 1-0

[Event "FIDE WYCC Open U14 2023"]
[Site "Montesilvano"]
[Date "2023.11.17"]
[Round "5.25"]
[White "Tenuunbold, Battulga"]
[Black "Lira, Suan Bruno Fernandes"]
[Result "1/2-1/2"]
[ECO "E04"]
[WhiteElo "2290"]
[BlackElo "1858"]
[Annotator "RC"]
[PlyCount "102"]
[EventDate "2023.11.13"]
[EventType "swiss"]
[EventCountry "ITA"]
[SourceTitle "playchess.com"]
[Source "ChessBase"]
[SourceQuality "1"]
[TimeControl "40/5400+30:1800+30"]

1. d4 {[%emt 0:00:14]} d5 {[%emt 0:00:04]} 2. c4 {[%emt 0:00:07]} e6 {[%emt 0:00:15]} 3. Nf3 {[%emt 0:00:15]} Nf6 {[%emt 0:00:13]} 4. g3 {[%emt 0:00:19]} dxc4 {[%emt 0:00:51]} 5. Bg2 {[%emt 0:00:25]} c5 {[%emt 0:00:20]} 6. O-O {[%emt 0:01:03]} Nc6 {[%emt 0:00:41]} 7. dxc5 {[%emt 0:00:39]} Qxd1 {[%emt 0:01:37]} 8. Rxd1 {[%emt 0:00:06]} Bxc5 {[%emt 0:00:07]} 9. Nbd2 {[%emt 0:00:14]} c3 {[%emt 0:00:29]} 10. bxc3 {[%emt 0:00:32]} O-O {[%emt 0:00:12]} 11. Nb3 {[%emt 0:01:26]} Be7 {[%emt 0:00:08]} 12. c4 {[%emt 0:08:01]} Bd7 {[%emt 0:01:47]} 13. Bb2 {[%emt 0:21:15]} Rfc8 {[%emt 0:01:51]} 14. Ne5 {[%emt 0:16:04]} Be8 {[%emt 0:11:42]} 15. Rab1 {[%emt 0:14:07]} Nxe5 {[%emt 0:16:04]} 16. Bxe5 {[%emt 0:00:04]} Rxc4 {[%emt 0:08:18]} 17. Bxb7 {[%emt 0:04:35]} Rd8 {[%emt 0:00:10]} 18. Rdc1 {[%emt 0:06:24]} Rb4 {[%emt 0:16:56]} 19. Bf3 {[%emt 0:03:30]} Kf8 {[%emt 0:12:50]} 20. Bc7 {[%emt 0:03:39]} Rc8 {[%emt 0:02:16]} 21. Kf1 {[%emt 0:05:32]} Bd7 {[%emt 0:04:08]} 22. Bf4 {[%emt 0:06:32]} Nd5 {[%emt 0:07:19]} 23. Rxc8+ {[%emt 0:01:08]} Bxc8 {[%emt 0:00:04]} 24. Bxd5 {[%emt 0:00:07]} exd5 {[%emt 0:00:05]} 25. Rc1 {[%emt 0:00:06]} Rc4 {[%emt 0:00:53]} 26. Ke1 {[%emt 0:03:48]} Ke8 {[%emt 0:02:50]} 27. Kd1 {[%emt 0:02:14]} Bd7 {[%emt 0:02:04]} 28. Be3 {[%emt 0:01:17]} Ra4 {[%emt 0:03:54]} 29. Rc2 {[%emt 0:00:36]} Bb4 {[%emt 0:02:23]} 30. Nc5 {[%emt 0:00:16]} Bxc5 {[%emt 0:00:45]} 31. Bxc5 {[%emt 0:00:04]} Ra5 {[%emt 0:02:42]} 32. Bb4 {[%emt 0:01:12]} Rb5 {[%emt 0:00:25]} 33. Rb2 {[%emt 0:00:25]} Bf5 {[%emt 0:01:24]} 34. Kd2 {[%emt 0:00:29]} a5 {[%emt 0:01:07]} 35. Bc3 {[%emt 0:00:12]} Rxb2+ {[%emt 0:00:05]} 36. Bxb2 {[%emt 0:00:01]} f6 {[%emt 0:00:27]} 37. Kc3 {[%emt 0:01:24]} Kd7 {[%emt 0:00:26]} 38. Kd4 {[%emt 0:00:12]} Kc6 {[%emt 0:00:18]} 39. Bc3 {[%emt 0:00:12]} Bb1 {[%emt 0:00:22]} 40. a3 {[%emt 0:00:00]} a4 {[%emt 0:00:00]} 41. Bb4 {[%emt 0:00:16]} Kd7 {[%emt 0:04:22]} 42. Kxd5 {[%emt 0:00:10]} Ba2+ {[%emt 0:00:11]} 43. Kd4 {[%emt 0:00:05]} Ke6 {[%emt 0:00:24]} 44. e4 {[%emt 0:00:49]} f5 {[%emt 0:01:54]} 45. f3 {[%emt 0:01:36]} Bb1 {[%emt 0:00:52]} 46. e5 {[%emt 0:00:23]} Ba2 {[%emt 0:00:27]} 47. Bf8 {[%emt 0:02:03]} g6 {[%emt 0:02:00]} 48. f4 {[%emt 0:00:09]} Bb3 {[%emt 0:00:21]} 49. Kc5 {[%emt 0:00:31]} Kd7 {[%emt 0:01:12]} 50. Kb5 {[%emt 0:00:50]} Bd1 {[%emt 0:00:20]} 51. Bb4 {[%emt 0:00:26]} Bc2 {[%emt 0:00:12]} 1/2-1/2

[Event "FIDE WYCC Open U14 2023"]
[Site "Montesilvano"]
[Date "2023.11.17"]
[Round "5.26"]
[White "Ji, Jiahao Eric"]
[Black "Averin, Nikolay"]
[Result "0-1"]
[ECO "B90"]
[WhiteElo "2045"]
[BlackElo "2270"]
[Annotator "ChessBase"]
[PlyCount "58"]
[EventDate "2023.11.13"]
[EventType "swiss"]
[EventCountry "ITA"]
[SourceTitle "playchess.com"]
[Source "ChessBase"]
[SourceQuality "1"]
[TimeControl "40/5400+30:1800+30"]

1. e4 {[%emt 0:00:40]} c5 {[%emt 0:00:02]} 2. Nf3 {[%emt 0:00:03]} d6 {[%emt 0:00:04]} 3. d4 {[%emt 0:00:03]} cxd4 {[%emt 0:00:05]} 4. Nxd4 {[%emt 0:00:04]} Nf6 {[%emt 0:00:04]} 5. Nc3 {[%emt 0:00:04]} a6 {[%emt 0:00:03]} 6. h3 {[%emt 0:00:06]} e5 {[%emt 0:00:42]} 7. Nb3 {[%emt 0:00:09]} Be6 {[%emt 0:07:23]} 8. f4 {[%emt 0:00:44]} g6 {[%emt 0:01:04]} 9. Be2 {[%emt 0:00:06]} Nc6 {[%emt 0:02:48]} 10. O-O {[%emt 0:00:17]} Be7 {[%emt 0:23:16]} 11. f5 {[%emt 0:17:54]} gxf5 {[%emt 0:00:06]} 12. exf5 {[%emt 0:00:05]} Bxb3 {[%emt 0:00:26]} 13. axb3 {[%emt 0:00:08]} d5 {[%emt 0:00:20]} 14. Bg5 {[%emt 0:00:32]} Nb4 {[%emt 0:04:22]} 15. Ra4 {[%emt 0:11:21]} Qb6+ {[%emt 0:01:30]} 16. Kh1 {[%emt 0:00:19]} O-O-O {[%emt 0:00:52]} 17. Bf3 {[%emt 0:07:00]} e4 {[%emt 0:05:30]} 18. Bh5 {[%emt 0:24:32]} Rhg8 {[%emt 0:05:15]} 19. Bf4 {[%emt 0:08:02]} Nxh5 {[%emt 0:17:54]} 20. Qxh5 {[%emt 0:00:14]} Qf6 {[%emt 0:14:15]} 21. h4 {[%emt 0:15:48]} h6 {[%emt 0:05:17]} 22. Qxh6 {[%emt 0:01:44]} Qxh6 {[%emt 0:02:29]} 23. Bxh6 {[%emt 0:00:22]} Rh8 {[%emt 0:00:36]} 24. f6 {[%emt 0:02:22]} Bc5 {[%emt 0:00:25]} 25. Bg5 {[%emt 0:01:20]} Rdg8 {[%emt 0:00:34]} 26. Ra5 {[%emt 0:02:40]} Bb6 {[%emt 0:00:54]} 27. Nxd5 {[%emt 0:04:03]} Nxd5 {[%emt 0:00:45]} 28. Rxd5 {[%emt 0:00:12]} Rxg5 {[%emt 0:00:12]} 29. Rxg5 {[%emt 0:00:04]} Rxh4# {[%emt 0:00:05]} 0-1

[Event "FIDE WYCC Open U14 2023"]
[Site "Montesilvano"]
[Date "2023.11.17"]
[Round "5.27"]
[White "Sommer, Justus"]
[Black "Balint, Peter"]
[Result "*"]
[ECO "C78"]
[WhiteElo "2013"]
[BlackElo "2256"]
[Annotator "ChessBase"]
[PlyCount "90"]
[EventDate "2023.11.13"]
[EventType "swiss"]
[EventCountry "ITA"]
[SourceTitle "playchess.com"]
[Source "ChessBase"]
[SourceQuality "1"]
[TimeControl "40/5400+30:1800+30"]

1. e4 {[%emt 0:00:04]} e5 {[%emt 0:00:05]} 2. Nf3 {[%emt 0:00:09]} Nc6 {[%emt 0:00:05]} 3. Bb5 {[%emt 0:00:10]} a6 {[%emt 0:00:06]} 4. Ba4 {[%emt 0:00:07]} Nf6 {[%emt 0:00:04]} 5. O-O {[%emt 0:00:31]} b5 {[%emt 0:00:05]} 6. Bb3 {[%emt 0:00:06]} Bb7 {[%emt 0:00:03]} 7. d3 {[%emt 0:01:04]} Be7 {[%emt 0:00:06]} 8. Nc3 {[%emt 0:01:53]} O-O {[%emt 0:03:19]} 9. a4 {[%emt 0:03:53]} b4 {[%emt 0:01:14]} 10. Nd5 {[%emt 0:00:37]} Nxd5 {[%emt 0:03:48]} 11. Bxd5 {[%emt 0:00:21]} d6 {[%emt 0:07:15]} 12. d4 {[%emt 0:13:19]} exd4 {[%emt 0:19:02]} 13. Nxd4 {[%emt 0:00:28]} Qd7 {[%emt 0:03:34]} 14. Be3 {[%emt 0:19:31]} Rab8 {[%emt 0:06:33]} 15. Nxc6 {[%emt 0:14:16]} Bxc6 {[%emt 0:01:34]} 16. b3 {[%emt 0:00:21]} Rfe8 {[%emt 0:06:53]} 17. Qd3 {[%emt 0:03:18]} a5 {[%emt 0:01:32]} 18. Rad1 {[%emt 0:01:09]} Bf8 {[%emt 0:02:18]} 19. Bc1 {[%emt 0:04:40]} Bxd5 {[%emt 0:03:15]} 20. Qxd5 {[%emt 0:00:23]} c6 {[%emt 0:01:49]} 21. Qc4 {[%emt 0:00:56]} Rbc8 {[%emt 0:02:25]} 22. Bb2 {[%emt 0:06:34]} Re6 {[%emt 0:06:48]} 23. f3 {[%emt 0:03:15]} d5 {[%emt 0:04:49]} 24. Qa6 {[%emt 0:02:41]} Qc7 {[%emt 0:06:22]} 25. e5 {[%emt 0:02:36]} c5 {[%emt 0:04:13]} 26. Qe2 {[%emt 0:01:29]} d4 {[%emt 0:01:52]} 27. f4 {[%emt 0:00:16]} Rce8 {[%emt 0:02:05]} 28. Qc4 {[%emt 0:02:32]} Qb7 {[%emt 0:00:31]} 29. Rde1 {[%emt 0:00:57]} Qe7 {[%emt 0:01:22]} 30. Re2 {[%emt 0:01:29]} Kh8 {[%emt 0:00:16]} 31. Rfe1 {[%emt 0:00:18]} f5 {[%emt 0:00:41]} 32. Qd3 {[%emt 0:01:56]} g6 {[%emt 0:00:03]} 33. Rf1 {[%emt 0:02:50]} Bg7 {[%emt 0:02:10]} 34. g3 {[%emt 0:01:01]} Qb7 {[%emt 0:00:46]} 35. Qc4 {[%emt 0:02:13]} Qc6 {[%emt 0:00:11]} 36. h4 {[%emt 0:02:01]} h6 {[%emt 0:01:31]} 37. Qd3 {[%emt 0:01:31]} h5 {[%emt 0:01:19]} 38. Qc4 {[%emt 0:01:18]} Kg8 {[%emt 0:01:04]} 39. Kf2 {[%emt 0:01:14]} Kf7 {[%emt 0:00:16]} 40. Ke1 {[%emt 0:00:00]} Bf8 {[%emt 0:00:00]} 41. Kd2 {[%emt 0:10:35]} Be7 {[%emt 0:06:28]} 42. Kc1 {[%emt 0:01:31]} Bd8 {[%emt 0:01:01]} 43. Kb1 {[%emt 0:00:58]} Bb6 {[%emt 0:03:54]} 44. Rd2 {[%emt 0:01:51]} Rd8 {[%emt 0:01:10]} 45. Ka2 {[%emt 0:04:38]} Qd5 {[%emt 0:02:48]} *

[Event "FIDE WYCC Open U14 2023"]
[Site "Montesilvano"]
[Date "2023.11.17"]
[Round "5.28"]
[White "Zaragoza Alanis, Miguel Arnulfo"]
[Black "Nurgaliyev, Sauat"]
[Result "0-1"]
[ECO "B90"]
[WhiteElo "1838"]
[BlackElo "2235"]
[Annotator "ChessBase"]
[PlyCount "72"]
[EventDate "2023.11.13"]
[EventType "swiss"]
[EventCountry "ITA"]
[SourceTitle "playchess.com"]
[Source "ChessBase"]
[SourceQuality "1"]
[TimeControl "40/5400+30:1800+30"]

1. e4 {[%emt 0:00:01]} c5 {[%emt 0:00:11]} 2. Nf3 {[%emt 0:00:04]} d6 {[%emt 0:00:07]} 3. d4 {[%emt 0:00:05]} cxd4 {[%emt 0:00:06]} 4. Nxd4 {[%emt 0:00:24]} Nf6 {[%emt 0:00:08]} 5. Nc3 {[%emt 0:00:05]} a6 {[%emt 0:00:05]} 6. f3 {[%emt 0:00:12]} e5 {[%emt 0:00:11]} 7. Nb3 {[%emt 0:00:01]} Be6 {[%emt 0:00:09]} 8. Be3 {[%emt 0:00:06]} h5 {[%emt 0:00:06]} 9. Qd2 {[%emt 0:01:41]} Nbd7 {[%emt 0:00:11]} 10. Nd5 {[%emt 0:00:49]} Bxd5 {[%emt 0:00:34]} 11. exd5 {[%emt 0:00:02]} g6 {[%emt 0:00:37]} 12. c4 {[%emt 0:08:46]} a5 {[%emt 0:01:41]} 13. Rc1 {[%emt 0:10:11]} a4 {[%emt 0:04:43]} 14. Na1 {[%emt 0:00:16]} Bg7 {[%emt 0:00:09]} 15. Be2 {[%emt 0:01:44]} e4 {[%emt 0:03:22]} 16. O-O {[%emt 0:22:43]} exf3 {[%emt 0:03:16]} 17. Bxf3 {[%emt 0:11:02]} Ne5 {[%emt 0:10:00]} 18. c5 {[%emt 0:09:32]} O-O {[%emt 0:01:04]} 19. c6 {[%emt 0:01:28]} bxc6 {[%emt 0:05:03]} 20. dxc6 {[%emt 0:02:21]} Rc8 {[%emt 0:02:19]} 21. b4 {[%emt 0:10:30]} axb3 {[%emt 0:08:27]} 22. Nxb3 {[%emt 0:00:41]} d5 {[%emt 0:13:29]} 23. Na5 {[%emt 0:06:01]} Nfg4 {[%emt 0:16:52]} 24. Bxg4 {[%emt 0:06:41]} Nxg4 {[%emt 0:00:58]} 25. Bf4 {[%emt 0:04:42]} Qb6+ {[%emt 0:17:25]} 26. Kh1 {[%emt 0:00:01]} Rfe8 {[%emt 0:02:36]} 27. c7 {[%emt 0:02:00]} g5 {[%emt 0:02:49]} 28. Bxg5 {[%emt 0:00:58]} Rxc7 {[%emt 0:00:14]} 29. Rb1 {[%emt 0:01:01]} Qg6 {[%emt 0:00:32]} 30. Bf4 {[%emt 0:00:27]} Rc2 {[%emt 0:01:06]} 31. Qxd5 {[%emt 0:00:24]} Nf2+ {[%emt 0:00:29]} 32. Kg1 {[%emt 0:00:34]} Ne4 {[%emt 0:03:41]} 33. Bg3 {[%emt 0:00:44]} h4 {[%emt 0:00:49]} 34. Qd3 {[%emt 0:00:39]} hxg3 {[%emt 0:01:20]} 35. Qxc2 {[%emt 0:00:14]} gxh2+ {[%emt 0:00:23]} 36. Kxh2 {[%emt 0:00:26]} Qh7+ {[%emt 0:00:08]} 0-1

[Event "FIDE WYCC Open U14 2023"]
[Site "Montesilvano"]
[Date "2023.11.17"]
[Round "5.29"]
[White "Yessengali, Adizhan"]
[Black "Dhruva Thota"]
[Result "0-1"]
[ECO "E65"]
[WhiteElo "1725"]
[BlackElo "2192"]
[Annotator "ChessBase"]
[PlyCount "74"]
[EventDate "2023.11.13"]
[EventType "swiss"]
[EventCountry "ITA"]
[SourceTitle "playchess.com"]
[Source "ChessBase"]
[SourceQuality "1"]
[TimeControl "40/5400+30:1800+30"]

1. d4 {[%emt 0:00:26]} Nf6 {[%emt 0:00:11]} 2. Nf3 {[%emt 0:00:03]} g6 {[%emt 0:00:16]} 3. g3 {[%emt 0:00:02]} Bg7 {[%emt 0:00:35]} 4. Bg2 {[%emt 0:00:04]} O-O {[%emt 0:00:20]} 5. c4 {[%emt 0:00:04]} d6 {[%emt 0:01:02]} 6. O-O {[%emt 0:00:04]} c5 {[%emt 0:01:12]} 7. Nc3 {[%emt 0:02:08]} Nc6 {[%emt 0:00:24]} 8. e3 {[%emt 0:00:44]} Bg4 {[%emt 0:01:14]} 9. h3 {[%emt 0:01:09]} Bxf3 {[%emt 0:00:11]} 10. Bxf3 {[%emt 0:00:04]} Nd7 {[%emt 0:00:17]} 11. Ne2 {[%emt 0:02:20]} Qb6 {[%emt 0:00:34]} 12. Bxc6 {[%emt 0:00:45]} bxc6 {[%emt 0:01:27]} 13. b3 {[%emt 0:01:54]} d5 {[%emt 0:12:24]} 14. cxd5 {[%emt 0:02:31]} cxd5 {[%emt 0:01:01]} 15. Bb2 {[%emt 0:10:18]} Qb7 {[%emt 0:16:57]} 16. Qd2 {[%emt 0:06:24]} e5 {[%emt 0:04:28]} 17. Rac1 {[%emt 0:13:08]} cxd4 {[%emt 0:11:15]} 18. exd4 {[%emt 0:00:05]} e4 {[%emt 0:02:20]} 19. Qa5 {[%emt 0:00:33]} Rfc8 {[%emt 0:02:01]} 20. Rfd1 {[%emt 0:07:27]} Nf6 {[%emt 0:07:27]} 21. Rc5 {[%emt 0:01:49]} Bf8 {[%emt 0:01:15]} 22. Nf4 {[%emt 0:04:52]} Qd7 {[%emt 0:08:52]} 23. Kg2 {[%emt 0:08:05]} Qf5 {[%emt 0:01:46]} 24. Qc3 {[%emt 0:09:17]} g5 {[%emt 0:11:03]} 25. Ne2 {[%emt 0:00:01]} h6 {[%emt 0:02:13]} 26. b4 {[%emt 0:06:48]} Re8 {[%emt 0:04:11]} 27. Rc6 {[%emt 0:01:15]} Bxb4 {[%emt 0:02:25]} 28. Qe3 {[%emt 0:00:32]} Rac8 {[%emt 0:00:49]} 29. Rdc1 {[%emt 0:00:17]} Rxc6 {[%emt 0:00:35]} 30. Rxc6 {[%emt 0:00:06]} Rc8 {[%emt 0:01:16]} 31. Rxc8+ {[%emt 0:00:39]} Qxc8 {[%emt 0:00:01]} 32. h4 {[%emt 0:00:10]} Ng4 {[%emt 0:01:45]} 33. Qc1 {[%emt 0:00:05]} Qf5 {[%emt 0:00:22]} 34. Qf1 {[%emt 0:01:05]} Qf3+ {[%emt 0:00:29]} 35. Kg1 {[%emt 0:00:05]} gxh4 {[%emt 0:00:34]} 36. gxh4 {[%emt 0:06:34]} Bd6 {[%emt 0:00:12]} 37. Ng3 {[%emt 0:00:23]} e3 {[%emt 0:00:34]} 0-1

[Event "FIDE WYCC Open U14 2023"]
[Site "Montesilvano"]
[Date "2023.11.17"]
[Round "5.30"]
[White "Kao, Jamison Edrich"]
[Black "Myagmarsuren, Evsuld"]
[Result "*"]
[ECO "B95"]
[WhiteElo "1701"]
[BlackElo "2150"]
[Annotator "ChessBase"]
[PlyCount "95"]
[EventDate "2023.11.13"]
[EventType "swiss"]
[EventCountry "ITA"]
[SourceTitle "playchess.com"]
[Source "ChessBase"]
[SourceQuality "1"]
[TimeControl "40/5400+30:1800+30"]

1. e4 {[%emt 0:00:01]} c5 {[%emt 0:00:10]} 2. Nf3 {[%emt 0:00:03]} d6 {[%emt 0:00:07]} 3. d4 {[%emt 0:00:02]} cxd4 {[%emt 0:00:05]} 4. Nxd4 {[%emt 0:00:03]} Nf6 {[%emt 0:00:17]} 5. Nc3 {[%emt 0:00:03]} a6 {[%emt 0:00:07]} 6. Bg5 {[%emt 0:00:04]} e6 {[%emt 0:00:05]} 7. Qe2 {[%emt 0:00:03]} h6 {[%emt 0:00:14]} 8. Bh4 {[%emt 0:00:08]} Be7 {[%emt 0:01:05]} 9. O-O-O {[%emt 0:00:05]} O-O {[%emt 0:03:53]} 10. e5 {[%emt 0:04:10]} Ne8 {[%emt 0:01:24]} 11. Bxe7 {[%emt 0:03:42]} Qxe7 {[%emt 0:00:06]} 12. f4 {[%emt 0:07:58]} b5 {[%emt 0:04:54]} 13. g3 {[%emt 0:15:05]} Bb7 {[%emt 0:04:37]} 14. Bg2 {[%emt 0:00:16]} d5 {[%emt 0:00:33]} 15. f5 {[%emt 0:04:16]} Nd7 {[%emt 0:08:05]} 16. Kb1 {[%emt 0:11:31]} b4 {[%emt 0:06:52]} 17. f6 {[%emt 0:17:34]} gxf6 {[%emt 0:00:57]} 18. Nxd5 {[%emt 0:01:11]} Bxd5 {[%emt 0:04:01]} 19. Bxd5 exd5 {[%emt 0:00:07]} 20. Nf5 {[%emt 0:02:20]} Qe6 {[%emt 0:02:54]} 21. Qh5 {[%emt 0:00:46]} Ng7 {[%emt 0:11:46]} 22. Nxh6+ {[%emt 0:01:03]} Kh7 {[%emt 0:00:04]} 23. Qh4 {[%emt 0:00:22]} Kg6 {[%emt 0:00:41]} 24. Rd4 {[%emt 0:03:13]} Nxe5 {[%emt 0:01:20]} 25. Ng4 {[%emt 0:11:13]} Rh8 {[%emt 0:12:24]} 26. Nxe5+ {[%emt 0:02:12]} Qxe5 {[%emt 0:00:06]} 27. Rg4+ {[%emt 0:01:49]} Kf5 {[%emt 0:00:08]} 28. Rf4+ {[%emt 0:00:03]} Ke6 {[%emt 0:00:50]} 29. Qg4+ {[%emt 0:06:31]} Ke7 {[%emt 0:01:33]} 30. Rff1 {[%emt 0:01:56]} Ne6 {[%emt 0:01:41]} 31. Qxb4+ {[%emt 0:00:09]} Kd7 {[%emt 0:02:36]} 32. Qa4+ {[%emt 0:01:14]} Kc7 {[%emt 0:01:18]} 33. Qa5+ {[%emt 0:02:08]} Kb7 {[%emt 0:01:03]} 34. Rf3 {[%emt 0:01:22]} Rab8 {[%emt 0:02:35]} 35. Re1 {[%emt 0:00:59]} Qd6 {[%emt 0:01:25]} 36. Rxf6 {[%emt 0:00:51]} Qd7 {[%emt 0:00:28]} 37. Ref1 {[%emt 0:00:49]} Rh7 {[%emt 0:01:05]} 38. R6f5 {[%emt 0:00:41]} d4 {[%emt 0:00:51]} 39. R5f3 {[%emt 0:01:38]} Ka7 {[%emt 0:01:24]} 40. h4 {[%emt 0:00:00]} Rb5 {[%emt 0:00:00]} 41. Qd2 {[%emt 0:04:55]} Nc5 {[%emt 0:04:41]} 42. Rd1 {[%emt 0:06:09]} Qb7 {[%emt 0:00:52]} 43. c4 {[%emt 0:04:47]} Rb4 {[%emt 0:02:42]} 44. Rf4 {[%emt 0:06:47]} Ne6 {[%emt 0:02:21]} 45. Rxd4 {[%emt 0:04:16]} Nxd4 {[%emt 0:01:06]} 46. Qxd4+ {[%emt 0:00:01]} Rb6 {[%emt 0:00:11]} 47. a4 {[%emt 0:02:38]} a5 {[%emt 0:02:36]} 48. Qe5 {[%emt 0:03:08]} *